bitfinex/quotes_ETHUSD_20251028
["timestamp","ask_amount","ask_price","bid_price","bid_amount"]
[1761666044891,0.6606,4098.9,4098.1,0.01]
[1761666045128,2.44004734,4098.3,4098.1,0.01]
[1761666045331,0.48799833,4098.3,4098.1,0.01]
[1761666045639,1.7779,4098.9,4098.1,0.01]
[1761666045640,2.87799565,4098.2,4098.1,0.01]
[1761666046238,4.43319565,4098.2,4098.1,0.01]
[1761666049494,2.44009565,4098.2,4098.1,0.01]
[1761666050464,2.44004865,4098.3,4098.1,0.01]
[1761666050672,2.44003826,4098.3,4098.1,0.01]
[1761666050840,2.87753724,4099.0,4098.1,0.01]
[1761666051047,2.44008171,4098.3,4098.1,0.01]
[1761666051278,2.43928171,4098.3,4098.1,0.01]
[1761666051674,2.43990685,4098.6,4098.1,0.01]
[1761666051844,2.43990685,4098.6,4098.1,0.012]
[1761666051845,2.44001819,4098.4,4098.1,0.012]
[1761666052046,2.44008414,4098.3,4098.1,0.012]
[1761666052399,2.97198797,4098.2,4098.1,0.012]
[1761666053074,3.40988797,4098.2,4098.1,0.012]
[1761666053775,2.97198797,4098.2,4098.1,0.012]
[1761666054080,2.87799565,4098.2,4098.1,0.012]
[1761666054278,4.43319565,4098.2,4098.1,0.012]
[1761666054656,2.44009565,4098.2,4098.1,0.012]
[1761666054861,0.001,4098.4,4098.1,0.012]
[1761666055377,2.44009565,4098.2,4098.1,0.012]
[1761666056084,0.001,4098.4,4098.1,0.012]
[1761666056416,2.44004502,4098.3,4098.1,0.012]
[1761666056558,0.4379,4098.3,4098.1,0.012]
[1761666056908,2.44097923,4098.4,4098.1,0.012]
[1761666057987,2.44009565,4098.2,4098.1,0.012]
[1761666058196,0.001,4098.4,4098.1,0.012]
[1761666058616,0.001,4098.4,4098.1,0.1989]
[1761666058900,0.001,4098.4,4098.1,0.46281282]
[1761666059654,0.001,4098.4,4098.1,0.012]
[1761666060674,2.44098661,4098.4,4098.1,0.012]
[1761666060871,0.001,4098.4,4098.1,0.012]
[1761666061071,2.44009231,4098.3,4098.1,0.012]
[1761666061272,2.44003611,4098.3,4098.1,0.012]
[1761666061496,3.16588926,4098.2,4098.1,0.012]
[1761666063059,4.72108926,4098.2,4098.1,0.012]
[1761666063375,4.11695519,4098.1,4097.6,0.002]
[1761666063579,2.66309339,4097.7,4097.6,0.002]
[1761666064005,3.10099339,4097.7,4097.6,0.002]
[1761666064246,5.23259431,4097.7,4097.6,0.002]
[1761666065535,8.20509831,4097.7,4097.6,0.002]
[1761666065888,5.23259431,4097.7,4097.6,0.002]
[1761666066624,0.4486,4097.7,4097.6,0.002]
[1761666066926,2.88899339,4097.7,4097.6,0.002]
[1761666067235,4.44419339,4097.7,4097.6,0.002]
[1761666067928,4.46339339,4097.7,4097.6,0.002]
[1761666068939,2.44039339,4097.7,4097.6,0.002]
[1761666069137,0.2227,4098.0,4097.6,0.002]
[1761666069345,2.44039339,4097.7,4097.6,0.002]
[1761666069542,3.99552688,4097.9,4097.6,0.002]
[1761666069729,2.44033913,4097.8,4097.6,0.002]
[1761666069912,2.44039339,4097.7,4097.6,0.002]
[1761666070106,2.66295607,4098.0,4097.6,0.002]
[1761666070314,2.04419561,4098.0,4097.6,0.002]
[1761666070514,2.44039339,4097.7,4097.6,0.002]
[1761666071018,18.54643891,4097.7,4097.6,0.002]
[1761666071948,3.99559339,4097.7,4097.6,0.002]
[1761666074818,4.46339339,4097.7,4097.6,0.002]
[1761666075024,5.20266257,4097.7,4097.6,0.002]
[1761666075419,5.20266257,4097.7,4097.2,0.002]
[1761666075420,2.44063163,4097.3,4097.2,0.002]
[1761666075721,2.4409295,4096.8,4096.7,0.002]
[1761666076049,19.12837713,4096.8,4096.7,0.002]
[1761666076347,19.59617713,4096.8,4096.7,0.002]
[1761666076827,19.59537713,4096.8,4096.7,0.002]
[1761666077755,0.405504,4096.5,4095.1,0.01]
[1761666077955,18.48503656,4096.2,4095.1,0.01]
[1761666078159,20.21893708,4096.2,4095.1,0.01]
[1761666078456,21.09224108,4096.2,4095.1,0.01]
[1761666079158,2.4417043,4095.5,4095.1,0.01]
[1761666079859,2.9095043,4095.5,4095.1,0.01]
[1761666080064,19.48836645,4095.5,4095.1,0.01]
[1761666082694,2.84738718,4095.2,4095.1,0.01]
[1761666082857,4.40258718,4095.2,4095.1,1e-08]
[1761666083062,4.87038718,4095.2,4095.1,1e-08]
[1761666083223,2.4424796,4094.2,4094.1,0.01]
[1761666083424,4.4654796,4094.2,4094.1,0.01]
[1761666084374,4.8709836,4094.2,4094.1,1e-08]
[1761666084731,2.44307632,4093.2,4093.1,0.01]
[1761666084930,1.5552,4093.9,4093.1,0.01]
[1761666085133,1.5552,4094.5,4093.1,0.1989]
[1761666085434,2.44295075,4093.5,4093.1,0.01]
[1761666085660,2.44307632,4093.2,4093.1,0.01]
[1761666085863,3.99827632,4093.2,4093.1,0.01]
[1761666086029,4.46607632,4093.2,4093.1,0.01]
[1761666086378,4.7110035,4093.2,4093.1,0.01]
[1761666087541,0.71272718,4093.2,4093.1,0.01]
[1761666087737,3.99822992,4093.3,4093.1,0.01]
[1761666087963,2.44252745,4094.2,4093.1,0.01]
[1761666088272,2.44254995,4094.1,4093.1,0.01]
[1761666088577,2.66038135,4094.7,4093.2,0.1889]
[1761666088874,2.44248541,4094.2,4093.3,2.44301154]
[1761666089094,2.44241283,4094.4,4093.5,2.44289503]
[1761666089266,14.08304552,4094.8,4093.6,2.44277953]
[1761666089466,0.2182,4094.9,4093.7,0.1889]
[1761666089791,2.44229084,4094.6,4093.7,0.1889]
[1761666090005,0.2182,4095.0,4092.4,0.05]
[1761666090006,0.2182,4093.8,4092.4,0.05]
[1761666090255,0.2182,4092.7,4092.4,0.05]
[1761666090371,2.44349419,4092.5,4092.4,0.05]
[1761666090962,2.44344407,4092.6,4092.4,0.05]
[1761666091210,14.08304552,4093.1,4092.4,0.05]
[1761666091211,14.08304552,4093.6,4092.4,0.05]
[1761666091420,1.43012455,4093.5,4092.4,0.2389]
[1761666091703,14.30124552,4094.1,4092.4,0.2389]
[1761666091910,2.44342997,4092.7,4092.4,0.05]
[1761666092263,2.44265858,4093.9,4092.4,0.05]
[1761666092264,2.44336302,4092.8,4092.4,0.05]
[1761666092592,2.44335363,4092.8,4092.4,0.05]
[1761666092906,1.7734,4093.8,4092.5,0.1889]
[1761666093064,2.44326164,4092.9,4092.5,0.1889]
[1761666093396,2.4434916,4092.6,4092.4,0.05]
[1761666093597,2.44344571,4092.6,4092.4,0.05]
[1761666093767,2.44349419,4092.5,4092.4,0.05]
[1761666093998,2.44344734,4092.6,4092.4,0.05]
[1761666094560,2.44344734,4092.6,4092.4,0.2389]
[1761666095005,1.58564455,4093.7,4092.5,0.1889]
[1761666095317,1.5652,4094.4,4092.5,0.1889]
[1761666095468,0.01,4094.4,4092.5,1.7441]
[1761666095667,0.01,4094.4,4092.6,0.1889]
[1761666096164,0.01,4094.4,4094.1,2.44253767]
[1761666096364,0.01,4094.4,4092.7,0.405504]
[1761666096365,0.01,4094.4,4094.2,2.39247531]
[1761666096566,0.01,4094.4,4094.1,2.44253608]
[1761666096997,0.01,4094.4,4094.3,2.44241994]
[1761666097375,0.01,4094.4,4094.3,2.63131994]
[1761666097804,0.01,4094.4,4094.3,2.65574413]
[1761666098203,0.01,4094.4,4094.3,2.63131994]
[1761666099200,0.01,4094.4,4094.1,0.48851943]
[1761666099201,0.01,4094.4,4093.7,0.1889]
[1761666099837,0.01,4094.4,4092.5,0.405504]
[1761666100033,0.1316,4094.4,4093.7,0.1216]
[1761666100234,0.1308,4094.4,4093.7,0.1216]
[1761666100753,0.1308,4094.4,4093.0,2.44314873]
[1761666100754,2.44284429,4093.6,4093.0,0.1216]
[1761666100918,0.1216,4093.7,4092.7,0.1889]
[1761666101116,0.1216,4093.5,4093.0,2.44319541]
[1761666101443,0.1216,4093.5,4092.8,2.56491001]
[1761666101738,0.0092,4094.4,4092.4,0.05]
[1761666101739,0.1216,4093.8,4093.1,0.1216]
[1761666101903,2.44287591,4093.6,4092.9,0.1889]
[1761666102104,2.44279484,4093.7,4092.9,0.1889]
[1761666102336,2.44284307,4093.6,4092.9,0.1889]
[1761666102637,0.4767,4094.4,4092.9,0.1889]
[1761666102803,2.44266279,4093.9,4092.9,0.1889]
[1761666103009,0.4767,4094.4,4092.9,0.1889]
[1761666103336,2.44272434,4093.8,4093.0,2.44319508]
[1761666103536,0.29190342,4094.3,4092.9,0.1889]
[1761666103838,2.44267956,4093.9,4093.0,2.4431546]
[1761666104041,2.44283457,4093.7,4092.9,0.1889]
[1761666104242,0.4767,4094.4,4092.9,0.1889]
[1761666104646,0.4767,4094.4,4092.4,0.05]
[1761666104863,2.44299963,4093.4,4092.6,2.44342372]
[1761666105297,2.44283787,4093.6,4092.6,2.44342372]
[1761666105419,2.443019,4093.3,4092.6,2.44342372]
[1761666105615,0.26724379,4093.5,4092.4,0.05]
[1761666105816,2.4434204,4092.7,4092.4,0.05]
[1761666106463,2.44336128,4092.8,4092.4,0.05]
[1761666106615,2.4433246,4092.8,4092.4,0.05]
[1761666107047,2.44338828,4092.7,4092.4,0.05]
[1761666107246,2.44333439,4092.8,4092.4,0.05]
[1761666107418,0.4675,4093.5,4092.4,0.05]
[1761666107754,0.31398882,4093.4,4092.4,2.49350163]
[1761666108053,2.44314242,4093.1,4092.4,2.49350163]
[1761666108351,2.44309099,4093.2,4092.4,2.49350163]
[1761666108516,0.31398882,4093.4,4092.4,0.05]
[1761666108854,2.44312201,4093.2,4092.6,0.002]
[1761666109150,2.44313249,4093.2,4092.6,0.002]
[1761666109658,0.2296,4093.7,4092.6,0.002]
[1761666109959,0.4675,4094.5,4092.8,2.44329871]
[1761666110156,2.44282089,4093.7,4092.9,2.44319721]
[1761666110453,2.44271078,4093.9,4093.1,2.44313321]
[1761666110749,2.44271078,4093.9,4092.9,2.44324156]
[1761666110750,2.44280955,4093.7,4092.9,2.44324156]
[1761666110956,2.44272518,4093.8,4093.1,2.44312983]
[1761666111138,0.48852523,4093.9,4092.9,0.1889]
[1761666111339,0.4777,4094.4,4093.1,2.44312078]
[1761666111340,2.44272474,4093.8,4093.1,2.44312078]
[1761666111651,2.4427201,4093.8,4092.7,2.44337478]
[1761666111851,0.1216,4093.4,4092.7,0.1216]
[1761666112056,0.1216,4093.4,4092.8,0.1889]
[1761666112356,0.1216,4093.6,4093.2,2.44303828]
[1761666112859,0.1216,4093.6,4093.3,0.1889]
[1761666113156,0.1216,4093.6,4093.4,2.44295506]
[1761666113315,0.1216,4093.6,4093.3,2.63191227]
[1761666113521,0.1216,4093.6,4093.3,2.44301227]
[1761666113852,0.1216,4093.6,4093.3,2.44300082]
[1761666114156,0.1216,4093.6,4093.2,2.9438422]
[1761666114323,0.1216,4093.6,4093.1,2.44313554]
[1761666114515,0.1216,4093.6,4093.0,0.1889]
[1761666114720,2.44284395,4093.6,4092.9,2.44324216]
[1761666114930,0.1216,4093.4,4092.7,2.56497478]
[1761666115132,0.1216,4093.4,4092.8,2.4432979]
[1761666115935,0.1216,4093.4,4092.9,2.44324496]
[1761666116258,0.1216,4093.4,4092.7,2.56491878]
[1761666116659,0.1216,4093.4,4092.8,2.44330292]
[1761666116865,2.44329927,4092.9,4092.6,0.002]
[1761666117040,2.44321588,4093.0,4092.6,0.002]
[1761666117241,2.44326976,4092.9,4092.6,0.002]
[1761666118173,2.4432141,4093.0,4092.6,0.002]
[1761666118376,2.67297478,4092.7,4092.6,0.002]
[1761666118539,0.2296,4092.7,4092.6,0.002]
[1761666119065,2.67297478,4092.7,4092.6,0.002]
[1761666119265,3.14047478,4092.7,4092.6,0.002]
[1761666120338,2.67297478,4092.7,4092.6,0.002]
[1761666120583,3.46760924,4092.7,4092.6,0.002]
[1761666122491,1.5552,4092.6,4089.1,0.01]
[1761666122779,0.2296,4091.2,4089.5,2.44522878]
[1761666122995,3.14137062,4091.2,4089.5,2.44527896]
[1761666123197,6.83533548,4091.2,4089.4,0.2909]
[1761666123396,6.83533548,4091.2,4089.8,2.44506153]
[1761666124068,6.83533548,4091.2,4089.4,0.2909]
[1761666124266,6.83533548,4091.2,4089.4,0.05]
[1761666124579,6.83453548,4091.2,4089.5,2.44523213]
[1761666124769,6.83453548,4091.2,4089.5,2.44527943]
[1761666125167,6.83453548,4091.2,4089.4,0.05]
[1761666125466,2.44486822,4090.2,4089.4,0.05]
[1761666125896,2.88736822,4090.2,4089.4,0.05]
[1761666126469,2.44457991,4090.7,4089.4,0.05]
[1761666126470,0.6713,4091.2,4089.4,0.05]
[1761666126709,0.6713,4091.2,4090.1,0.0628]
[1761666126898,0.1216,4090.3,4090.2,2.44486822]
[1761666127066,2.44403322,4091.6,4090.2,2.44486822]
[1761666127067,0.2344,4091.6,4090.2,0.25076682]
[1761666127274,0.2344,4092.4,4090.4,2.44474867]
[1761666127583,0.2344,4092.4,4090.3,0.2417]
[1761666127777,2.44391474,4091.8,4090.1,0.0628]
[1761666127977,0.4425,4092.3,4090.2,0.2417]
[1761666128420,0.4425,4092.3,4090.3,0.02444808]
[1761666128707,2.44381917,4092.0,4091.1,2.44628868]
[1761666128876,2.44374134,4092.1,4091.3,2.44420886]
[1761666129078,0.2444,4092.4,4091.4,2.44413568]
[1761666129403,0.4444,4092.3,4091.1,0.002]
[1761666129769,0.01,4092.4,4091.2,0.2417]
[1761666129969,0.01,4092.4,4091.7,2.44393894]
[1761666130181,0.01,4092.4,4091.2,0.2417]
[1761666130711,0.01,4092.4,4091.3,0.0244421]
[1761666130911,0.01,4092.4,4092.3,2.63251361]
[1761666131704,0.01,4092.4,4092.3,2.87421361]
[1761666131896,0.2223,4093.5,4092.5,2.44344459]
[1761666132092,0.2223,4093.5,4092.7,2.44335436]
[1761666132406,0.2223,4093.5,4092.3,0.96239319]
[1761666132618,2.44338808,4092.7,4091.7,0.1889]
[1761666132907,0.2223,4092.4,4091.1,0.002]
[1761666133069,2.88754352,4093.1,4091.1,0.2437]
[1761666133269,0.28875435,4093.0,4091.2,2.44427062]
[1761666133502,2.44308967,4093.2,4092.0,2.44374703]
[1761666133821,1.5552,4093.4,4091.4,0.02444151]
[1761666134000,2.44296855,4093.4,4091.3,2.44421088]
[1761666134197,2.4431322,4093.2,4092.3,2.44356176]
[1761666134415,0.2223,4093.5,4092.5,2.44344613]
[1761666134618,2.44301007,4093.4,4092.5,2.44343478]
[1761666134772,2.4429838,4093.4,4092.6,2.63233449]
[1761666134969,0.2223,4093.5,4092.6,0.1889]
[1761666135172,2.66521211,4093.5,4092.6,0.1889]
[1761666135399,2.44307982,4093.2,4092.2,2.63257332]
[1761666135678,2.44307539,4093.3,4092.5,2.44349272]
[1761666135894,2.44312481,4093.2,4092.4,2.44354826]
[1761666136091,2.44315944,4093.1,4092.3,2.44360947]
[1761666136403,2.44315944,4093.1,4092.2,0.1889]
[1761666136404,0.4444,4093.4,4092.2,0.1889]
[1761666136701,0.6667,4093.5,4092.2,0.1889]
[1761666136873,2.44313301,4093.2,4092.4,2.44352501]
[1761666137078,0.4444,4093.4,4092.2,0.1889]
[1761666137290,0.1216,4093.0,4092.3,0.1216]
[1761666137493,0.1216,4093.0,4092.5,2.44346566]
[1761666137685,0.1216,4093.0,4092.4,2.4435539]
[1761666137897,0.1216,4093.0,4092.7,2.44333879]
[1761666138093,0.1216,4093.0,4092.6,2.44341677]
[1761666138284,0.1216,4093.0,4092.7,2.44337009]
[1761666138780,0.1216,4093.0,4092.5,0.27540539]
[1761666139000,0.1216,4093.0,4092.3,2.56515995]
[1761666139202,0.1216,4093.0,4092.4,2.44354419]
[1761666139382,2.56479832,4093.0,4092.3,2.56520282]
[1761666139590,0.1216,4093.0,4092.4,2.44353114]
[1761666139897,0.1216,4092.7,4092.4,2.44354618]
[1761666140203,0.1216,4092.7,4092.6,2.44343449]
[1761666140392,0.1216,4093.0,4092.8,2.44329758]
[1761666140791,0.1216,4093.0,4092.3,0.1216]
[1761666140792,0.6667,4092.9,4092.3,0.1216]
[1761666141103,0.1216,4092.7,4092.1,0.1316]
[1761666141435,0.1216,4092.7,4092.4,2.44350072]
[1761666141811,0.1216,4092.7,4092.1,2.57532832]
[1761666141978,0.1216,4092.7,4092.4,2.44353701]
[1761666142180,0.1216,4092.7,4092.6,2.44343449]
[1761666142585,0.1216,4093.0,4092.3,0.1216]
[1761666142839,0.25647555,4093.0,4092.2,3.7242]
[1761666142973,0.2223,4093.4,4092.1,0.01]
[1761666142974,2.66597332,4092.2,4092.1,0.01]
[1761666143417,2.44402983,4091.7,4090.1,0.0628]
[1761666143631,1.9996,4092.1,4090.1,0.0628]
[1761666143831,1.7775,4092.2,4090.7,2.44455448]
[1761666143979,2.44414384,4091.5,4090.7,2.44455448]
[1761666144179,2.44415828,4091.4,4090.7,2.44452306]
[1761666144378,2.44427062,4091.2,4090.1,0.0628]
[1761666144630,2.44427062,4091.2,4090.1,0.01]
[1761666144781,2.88867062,4091.2,4090.1,0.01]
[1761666148015,2.88867062,4091.2,4090.2,0.0628]
[1761666148215,2.88867062,4091.2,4090.6,0.002]
[1761666148889,47.88867062,4091.2,4090.6,0.002]
[1761666149085,47.88787062,4091.2,4090.6,0.002]
[1761666149313,51.79961592,4091.2,4090.6,0.002]
[1761666149712,51.79961592,4091.2,4090.1,0.01]
[1761666150886,50.24521592,4091.2,4090.2,0.0628]
[1761666151087,45.0,4091.2,4090.3,2.44479129]
[1761666151390,45.0,4091.2,4090.5,2.44468353]
[1761666151632,45.0,4091.2,4090.6,2.44462851]
[1761666151833,45.0,4091.2,4090.6,2.44461751]
[1761666152233,45.0,4091.2,4090.4,2.44469947]
[1761666152536,45.0,4091.2,4090.2,0.0628]
[1761666152537,45.0,4091.2,4090.7,2.44456523]
[1761666153044,45.0,4091.2,4090.8,2.44449935]
[1761666153199,45.0,4091.2,4090.3,0.3733]
[1761666153401,45.0,4091.2,4090.5,2.44465114]
[1761666153612,45.0,4091.2,4090.6,2.44458033]
[1761666153945,45.0,4091.2,4090.8,2.44449861]
[1761666154160,45.0,4091.2,4090.6,2.44461166]
[1761666154530,45.0,4091.2,4090.5,2.44467254]
[1761666154731,47.44427062,4091.2,4090.4,2.4446934]
[1761666154935,45.0,4091.2,4090.5,2.44466624]
[1761666155170,47.44427062,4091.2,4090.5,2.44466624]
[1761666155330,47.44427062,4091.2,4090.2,4.0387]
[1761666155667,47.44427062,4091.2,4090.2,6.48356037]
[1761666155819,47.44427062,4091.2,4090.4,2.44474323]
[1761666156025,47.44427062,4091.2,4090.2,4.0387]
[1761666156324,47.88757062,4091.2,4090.2,3.787]
[1761666156526,50.24411592,4091.2,4090.2,3.787]
[1761666157057,50.24411592,4091.2,4090.5,0.2517]
[1761666157058,45.0,4091.2,4090.5,0.2517]
[1761666157227,45.0,4091.2,4090.7,2.69626343]
[1761666157422,45.0,4091.2,4090.7,0.2517]
[1761666157655,45.0,4091.2,4091.0,2.44434362]
[1761666157957,45.1216,4091.2,4090.8,2.44449823]
[1761666158255,45.1216,4091.2,4090.6,2.4446087]
[1761666158457,45.1216,4091.2,4090.8,2.44449919]
[1761666158628,45.1216,4091.2,4091.0,2.44438174]
[1761666158829,45.1216,4091.2,4090.7,2.69626534]
[1761666159028,45.1216,4091.2,4091.1,2.70803037]
[1761666159224,45.1216,4091.2,4091.1,0.012]
[1761666159424,45.1216,4091.2,4091.1,2.45633037]
[1761666159644,45.0,4091.2,4091.1,2.95366341]
[1761666161452,45.0,4091.2,4091.1,3.00366341]
[1761666162935,44.999023,4091.2,4091.1,6.72786341]
[1761666166744,45.000023,4091.2,4091.1,6.72786341]
[1761666168179,45.000023,4091.2,4091.1,3.7862]
[1761666168941,45.000023,4091.2,4091.1,6.23053037]
[1761666169933,45.000023,4091.2,4091.1,6.48223037]
[1761666173191,36.15599947,4091.2,4091.1,8.03743037]
[1761666173501,27.6341337,4091.2,4091.1,8.03743037]
[1761666173648,27.6341337,4091.2,4091.1,10.79947967]
[1761666173849,21.41188712,4091.2,4091.1,10.79947967]
[1761666175165,0.2333,4093.4,4091.2,1.960704]
[1761666175500,0.4433,4093.3,4091.4,0.405504]
[1761666175796,0.4433,4093.3,4092.6,2.44339827]
[1761666176087,0.2365,4092.7,4091.8,0.1889]
[1761666176454,0.2365,4092.7,4091.6,2.444022]
[1761666176455,0.4433,4092.6,4091.6,2.444022]
[1761666176674,2.88675025,4092.6,4091.5,2.44404934]
[1761666176878,0.55665655,4092.5,4091.7,2.44395727]
[1761666177379,2.88690056,4092.4,4091.2,2.44423295]
[1761666177806,0.4433,4092.4,4091.3,2.44418851]
[1761666177975,0.4433,4092.4,4090.8,2.44447251]
[1761666178177,0.1216,4092.0,4091.6,2.44400463]
[1761666178523,0.1216,4092.0,4091.3,0.1216]
[1761666178823,0.1216,4092.0,4091.7,2.44391621]
[1761666179179,0.1216,4092.0,4091.6,2.44401601]
[1761666179402,0.1216,4092.0,4091.6,2.44401822]
[1761666180108,0.1216,4092.0,4091.3,0.1216]
[1761666180433,0.1216,4092.0,4091.7,2.44391416]
[1761666180613,0.1216,4092.0,4091.5,2.44404111]
[1761666180780,0.1216,4092.0,4091.3,0.1216]
[1761666180980,0.1216,4092.0,4091.4,3.7242]
[1761666180981,0.2365,4091.9,4091.4,3.7242]
[1761666181181,3.12365773,4091.9,4091.2,3.7242]
[1761666181382,0.2365,4092.7,4091.2,3.7242]
[1761666181383,0.4433,4092.5,4091.2,3.7242]
[1761666181800,2.44361046,4092.4,4091.4,2.44411144]
[1761666182009,2.44361723,4092.3,4091.4,2.44411144]
[1761666182231,0.2365,4092.7,4091.2,3.7242]
[1761666182411,0.4433,4092.6,4091.7,2.44393594]
[1761666182828,2.44351731,4092.5,4091.3,2.44416415]
[1761666183120,0.4433,4092.6,4091.5,2.44407553]
[1761666183121,2.7558932,4092.4,4091.5,2.44407553]
[1761666183302,0.31233173,4092.4,4091.5,2.44407553]
[1761666183489,0.4433,4092.3,4091.5,2.44407553]
[1761666184339,0.4433,4092.3,4091.6,2.44402206]
[1761666184546,3.13709755,4092.7,4091.7,2.44391779]
[1761666184712,2.44343733,4092.6,4091.7,2.44391779]
[1761666184912,0.4572,4092.6,4091.2,3.7242]
[1761666185140,0.4572,4092.5,4091.7,3.7242]
[1761666185342,0.2208,4091.8,4091.7,3.7242]
[1761666185846,0.678,4091.8,4091.7,3.7242]
[1761666186710,0.2208,4091.9,4091.7,3.7242]
[1761666187032,2.90088647,4092.2,4091.7,3.7242]
[1761666187222,0.001,4092.3,4091.7,3.7242]
[1761666187400,2.4446139,4092.3,4091.7,3.7242]
[1761666187602,0.4511,4092.2,4091.7,3.7242]
[1761666187802,0.2269,4091.8,4091.7,3.7242]
[1761666188331,0.001,4092.3,4091.7,3.7242]
[1761666188545,2.44373553,4092.1,4091.7,3.7242]
[1761666188762,0.2269,4091.8,4091.7,3.7242]
[1761666189255,0.678,4091.8,4091.2,2.44426547]
[1761666189417,0.678,4091.8,4091.1,2.5063133]
[1761666189613,0.4511,4091.7,4091.1,0.062]
[1761666190021,0.2269,4091.8,4091.2,2.44426801]
[1761666190837,0.2269,4091.8,4091.1,2.50631189]
[1761666191241,0.1216,4091.5,4091.1,0.062]
[1761666191614,0.678,4091.8,4091.1,0.062]
[1761666191935,0.1216,4091.3,4091.1,0.062]
[1761666192741,2.44427062,4091.2,4091.1,0.062]
[1761666192941,3.15195768,4091.2,4091.1,0.062]
[1761666193142,0.70768706,4091.2,4089.4,0.05]
[1761666193340,0.4511,4091.1,4089.4,0.05]
[1761666193742,2.44486822,4090.2,4089.4,0.05]
[1761666194252,2.4452867,4089.5,4089.4,0.05]
[1761666194417,2.68981537,4089.5,4089.4,0.05]
[1761666194622,2.4454661,4089.2,4089.1,0.01]
[1761666194829,2.4454661,4089.2,4088.1,0.01]
[1761666194830,2.974504,4089.2,4088.1,0.01]
[1761666195030,2.67296428,4088.2,4088.1,0.01]
[1761666195487,3.12406428,4088.2,4088.1,0.01]
[1761666195745,3.68106866,4088.2,4088.1,0.01]
[1761666195937,1.23500438,4088.2,4088.1,0.01]
[1761666196246,0.678,4088.2,4088.1,0.01]
[1761666197140,3.12406428,4088.2,4088.1,0.01]
[1761666197342,0.678,4088.2,4088.1,0.01]
[1761666197938,0.6772,4088.2,4088.1,0.01]
[1761666198115,0.2261,4088.2,4088.1,0.01]
[1761666198314,0.2269,4088.6,4088.1,0.01]
[1761666198848,0.4511,4088.5,4088.1,0.01]
[1761666199279,0.2269,4088.9,4088.1,0.32843025]
[1761666199433,0.2269,4088.9,4088.2,2.4460568]
[1761666199853,0.2269,4088.9,4088.3,2.44599282]
[1761666200164,0.2269,4088.9,4088.1,0.01]
[1761666200165,0.678,4088.9,4088.1,0.01]
[1761666200669,0.4511,4088.8,4088.1,0.01]
[1761666200844,3.92739957,4088.7,4088.1,0.01]
[1761666201163,2.44588479,4088.5,4088.1,0.01]
[1761666201335,2.44598273,4088.4,4088.1,0.01]
[1761666201727,0.4511,4088.3,4088.1,0.01]
[1761666202565,2.44606428,4088.2,4088.1,0.01]
[1761666202878,2.98037564,4088.2,4088.1,0.01]
[1761666203043,3.43147564,4088.2,4088.1,0.01]
[1761666204154,1.6768,4088.1,4087.1,0.01]
[1761666204359,0.2269,4087.2,4087.1,0.01]
[1761666204689,2.67356275,4087.2,4087.1,0.01]
[1761666204832,1.19001222,4087.2,4087.1,0.01]
[1761666205038,3.12466275,4087.2,4087.1,0.01]
[1761666205471,0.678,4087.2,4087.1,0.01]
[1761666205774,0.4511,4087.7,4087.6,0.002]
[1761666205935,0.2269,4088.0,4087.6,0.002]
[1761666206135,0.4521,4088.2,4087.6,0.002]
[1761666206136,0.001,4088.2,4087.6,0.002]
[1761666206575,0.1216,4087.7,4087.6,0.002]
[1761666207157,0.1216,4087.7,4087.6,0.24684785]
[1761666207559,0.1216,4087.7,4087.6,2.69327117]
[1761666207772,0.1216,4088.1,4087.7,2.44634273]
[1761666207952,0.1216,4088.1,4087.6,0.24684785]
[1761666208150,0.2269,4088.0,4087.6,0.002]
[1761666208383,0.001,4088.2,4087.6,0.002]
[1761666208685,2.44706784,4088.2,4087.6,0.002]
[1761666208995,0.2269,4087.7,4087.6,0.002]
[1761666209175,2.67326348,4087.7,4087.6,0.002]
[1761666209368,3.12436348,4087.7,4087.6,0.002]
[1761666210097,3.68142576,4087.7,4087.6,0.002]
[1761666210596,5.64212976,4087.7,4087.6,0.002]
[1761666211346,5.23662576,4087.7,4087.6,0.002]
[1761666211849,5.64212976,4087.7,4087.6,0.002]
[1761666212752,5.76983308,4087.7,4087.6,0.002]
[1761666212981,5.64212976,4087.7,4087.6,0.002]
[1761666214771,4.22846348,4087.7,4087.6,0.002]
[1761666214975,2.67326348,4087.7,4087.6,0.002]
[1761666215197,0.6703,4087.7,4087.6,0.002]
[1761666215474,0.4434,4088.1,4087.6,0.002]
[1761666215697,2.44616663,4088.1,4087.6,0.002]
[1761666215917,2.44706605,4088.2,4087.6,0.002]
[1761666216073,0.001,4088.2,4087.6,0.002]
[1761666216575,0.001,4088.2,4087.6,0.3865]
[1761666216770,0.001,4088.2,4087.6,0.66979676]
[1761666217110,0.001,4088.2,4087.6,0.002]
[1761666217474,0.001,4088.2,4088.1,0.0628]
[1761666218040,0.001,4088.2,4088.1,2.89342411]
[1761666218308,0.001,4088.2,4088.1,0.0628]
[1761666218618,0.001,4088.2,4088.1,2.89342411]
[1761666218906,0.001,4088.2,4088.1,3.43954877]
[1761666219321,0.001,4088.2,4088.1,3.56114877]
[1761666219522,0.001,4088.2,4088.1,1.11502466]
[1761666219721,0.001,4088.2,4088.1,2.89342411]
[1761666220092,0.001,4088.2,4088.1,3.01502411]
[1761666220786,0.001,4088.2,4088.1,4.59468535]
[1761666221000,0.001,4088.2,4088.1,4.57022411]
[1761666221188,0.001,4088.2,4088.1,4.85412811]
[1761666221385,0.001,4088.2,4088.1,5.70576211]
[1761666222224,0.001,4088.2,4088.1,5.17865811]
[1761666222400,0.0002,4088.2,4088.1,5.17865811]
[1761666222730,0.0002,4088.2,4088.1,3.62345811]
[1761666222939,0.0002,4088.2,4088.1,0.0628]